fUSD/lending_fUSD_20250513
["ID","MTS","AMOUNT","RATE_DAILY","PERIOD"]
[360922070,1747147847299,-1118.09,0.00010999,2]
[360922071,1747147847309,-1118.09,0.00010999,2]
[360922072,1747147847318,-1118.09,0.00010999,2]
[360922073,1747147847327,-1118.09,0.00010999,2]
[360922074,1747147847336,-1118.09,0.00010999,2]
[360922075,1747147847346,-1118.09,0.00010999,2]
[360922076,1747147847355,-1118.09,0.00010999,2]
[360922077,1747147847365,-1118.09,0.00010999,2]
[360922078,1747147847374,-1118.09,0.00010999,2]
[360922079,1747147847383,-1118.09,0.00010999,2]
[360922080,1747147847393,-1118.09,0.00010999,2]
[360922081,1747147847403,-1118.09,0.00010999,2]
[360922082,1747147847412,-1118.09,0.00010999,2]
[360922083,1747147847422,-1118.09,0.00010999,2]
[360922084,1747147847431,-1118.09,0.00010999,2]
[360922085,1747147847441,-1118.31966159,0.00010999,2]
[360922086,1747147847450,-500.0,0.00010999,2]
[360922087,1747147847460,-500.0,0.00010999,2]
[360922088,1747147847470,-500.0,0.00010999,2]
[360922089,1747147847480,-500.0,0.00010999,2]
[360922090,1747147847490,-500.0,0.00010999,2]
[360922091,1747147847499,-500.0,0.00010999,2]
[360922092,1747147847509,-500.0,0.00010999,2]
[360922093,1747147847519,-500.0,0.00010999,2]
[360922094,1747147847530,-500.0,0.00010999,2]
[360922095,1747147847540,-500.0,0.00010999,2]
[360922096,1747147847549,-500.0,0.00010999,2]
[360922097,1747147847563,-500.0,0.00010999,2]
[360922098,1747147847572,-500.0,0.00010999,2]
[360922099,1747147847582,-500.0,0.00010999,2]
[360922100,1747147847592,-500.0,0.00010999,2]
[360922101,1747147847602,-500.0,0.00010999,2]
[360922102,1747147847612,-500.0,0.00010999,2]
[360922103,1747147847621,-500.0,0.00010999,2]
[360922104,1747147847631,-500.0,0.00010999,2]
[360922105,1747147847642,-500.0,0.00010999,2]
[360922106,1747147847653,-500.0,0.00010999,2]
[360922107,1747147847662,-500.0,0.00010999,2]
[360922108,1747147847672,-500.0,0.00010999,2]
[360922109,1747147847682,-500.0,0.00010999,2]
[360922110,1747147847692,-497.82805425,0.00010999,2]
[360922111,1747147847701,-500.0,0.00010999,2]
[360922112,1747147847711,-500.0,0.00010999,2]
[360922113,1747147847721,-500.0,0.00010999,2]
[360922114,1747147847730,-500.0,0.00010999,2]
[360922115,1747147847740,-500.0,0.00010999,2]
[360922116,1747147847750,-500.0,0.00010999,2]
[360922117,1747147847759,-500.0,0.00010999,2]
[360922118,1747147847770,-500.0,0.00010999,2]
[360922119,1747147847780,-500.0,0.00010999,2]
[360922120,1747147847791,-500.0,0.00010999,2]
[360922121,1747147847800,-500.0,0.00010999,2]
[360922122,1747147847810,-500.0,0.00010999,2]
[360922123,1747147847820,-500.0,0.00010999,2]
[360922124,1747147847830,-500.0,0.00010999,2]
[360922125,1747147847840,-500.0,0.00010999,2]
[360922126,1747147847849,-500.0,0.00010999,2]
[360922127,1747147847859,-309.93556122,0.00010999,2]
[360922128,1747147847870,-300.0,0.00010999,2]
[360922129,1747147847879,-300.0,0.00010999,2]
[360922130,1747147847889,-300.0,0.00010999,2]
[360922131,1747147847899,-763.0,0.00011,2]
[360922132,1747147847908,-725.92742809,0.00011,2]
[360922133,1747147847918,-139615.93149478,0.00011,2]
[360922134,1747147848168,-1000.0,0.00011,2]
[360922135,1747147848178,-104882.19138228,0.00011,2]
[360922136,1747147848202,-248707.99338958,0.00011,2]
[360922137,1747147848213,-3672.6988002,0.00011,2]
[360922138,1747147848225,-4613990.04347895,0.00011,2]
[360922139,1747147848243,-2149.99999,0.00011,2]
[360922140,1747147848254,-13622.05901225,0.00011,2]
[360922141,1747147848343,-1947.6730089,0.00011,2]
[360922142,1747147848894,-171.20009727,0.000109,2]
[360922143,1747147848904,-8266.78223108,0.00011,2]
[360922144,1747147848923,-972070.00000045,0.00011,2]
[360922145,1747147848959,-20111.39752811,0.00011,2]
[360922146,1747147849607,-400.0,0.0001099,2]
[360922147,1747147849617,-27541.20949945,0.00011,2]
[360922148,1747147849638,-25809.7870485,0.00011,2]
[360922149,1747147849649,-4582.23190367,0.00011,2]
[360922150,1747147849661,-1007.2450485,0.00011,2]
[360922151,1747147849672,-15449.99999999,0.00011,2]
[360922152,1747147849691,-5198.40341873,0.00011,2]
[360922153,1747147849703,-361523.27720617,0.00011,2]
[360922154,1747147849714,-3505.02499855,0.00011,2]
[360922155,1747147849726,-10980.63456963,0.00011,2]
[360922156,1747147849737,-17564.2213333,0.00011,2]
[360922181,1747148344593,242.165835,9.941e-05,2]
[360922338,1747148676729,1005.79,8.219e-05,2]
[360922339,1747148689845,3025.69,0.00028,120]
[360922340,1747148716249,6026.20141084,0.0002,30]
[360922375,1747148932369,135.33888839,9.918e-05,2]
[360922376,1747148932394,584.38111161,9.918e-05,2]
[360922396,1747149032503,-500.0,9.983e-05,2]
[360922398,1747149032512,-500.0,9.983e-05,2]
[360922400,1747149032521,-500.0,9.983e-05,2]
[360922402,1747149032530,-500.0,9.983e-05,2]
[360922404,1747149032540,-500.0,9.983e-05,2]
[360922405,1747149032549,-1200.0,9.984e-05,2]
[360922407,1747149032558,-300.0,9.984e-05,2]
[360922409,1747149032568,-1000.0,9.986e-05,2]
[360922411,1747149032577,-159.22476937,0.0001,2]
[360922413,1747149032587,-0.77523063,0.00010001,2]
[360922416,1747149032598,-670.62476937,0.00010001,2]
[360922418,1747149032607,-200.0,0.00010037,2]
[360922420,1747149032616,-250.0,0.00010081,2]
[360922422,1747149032625,-3218.37,0.00010091,2]
[360922423,1747149032634,-420.04,0.00010165,2]
[360922425,1747149032643,-207.4,0.00010449,2]
[360922426,1747149032652,-1005.79,0.00010474,2]
[360922428,1747149032662,-600.9017,0.00010841,2]
[360922430,1747149032671,-1755.5705,0.00010858,2]
[360922432,1747149032681,-931.17470783,0.00010858,2]
[360922439,1747149032742,-500.0,9.983e-05,2]
[360922441,1747149032751,-500.0,9.983e-05,2]
[360922443,1747149032760,-2431.34765887,0.00010858,2]
[360922445,1747149032772,-1029.0,0.00010858,2]
[360922534,1747149038071,-500.0,9.983e-05,2]
[360922535,1747149038082,-500.0,9.983e-05,2]
[360922536,1747149038092,-500.0,9.983e-05,2]
[360922537,1747149038102,-212.50160352,9.983e-05,2]
[360922538,1747149038139,-287.49839648,9.983e-05,2]
[360922539,1747149038150,-500.0,9.983e-05,2]
[360922540,1747149038160,-500.0,9.983e-05,2]
[360922557,1747149038170,-500.0,9.983e-05,2]
[360922563,1747149038512,-500.0,9.983e-05,2]
[360922565,1747149038522,-121.52660352,9.983e-05,2]
[360922567,1747149038534,-378.47339648,9.983e-05,2]
[360922569,1747149038543,-429.99109383,9.983e-05,2]
[360922570,1747149038552,-500.0,9.983e-05,2]
[360922572,1747149038562,-500.0,9.983e-05,2]
[360922573,1747149038572,-1602.1278333,0.00010858,2]
[360922575,1747149038581,-307.4823,0.00010858,2]
[360922577,1747149038590,-1138.0,0.000109,2]
[360922579,1747149038600,-153.97656905,0.000109,2]
[360922581,1747149038609,-153.97656905,0.000109,2]
[360922583,1747149038618,-153.97656905,0.000109,2]
[360922585,1747149038628,-2250.4608511,0.00010944,2]
[360922587,1747149038638,-999.99,0.00010944,2]
[360922589,1747149038647,-3663.09,0.00010944,2]
[360922591,1747149038656,-305.17965619,0.00010951,2]
[360922593,1747149038665,-668.65185757,0.00010951,2]
[360922594,1747149038674,-151.0,0.00010951,2]
[360922596,1747149038684,-199.56793329,0.00010957,2]
[360922599,1747149038695,-183.17135077,0.00010957,2]
[360922600,1747149038706,-183.87633614,0.00010957,2]
[360922602,1747149038718,-202.43006075,0.00010957,2]
[360922604,1747149038729,-400.0,0.00010958,2]
[360922606,1747149038739,-400.0,0.00010958,2]
[360922608,1747149038749,-400.0,0.00010958,2]
[360922610,1747149038758,-719.91,0.00010958,2]
[360922612,1747149038768,-400.0,0.00010958,2]
[360922614,1747149038777,-235.56133239,0.00010958,2]
[360922616,1747149038786,-1055.2,0.00010958,2]
[360922618,1747149038795,-400.0,0.00010958,2]
[360922620,1747149038805,-519.92,0.00010958,2]
[360922622,1747149038814,-596.07,0.00010958,2]
[360922624,1747149038823,-832.83,0.00010958,2]
[360922626,1747149038832,-400.0,0.00010958,2]
[360922628,1747149038842,-400.0,0.00010958,2]
[360922630,1747149038851,-400.0,0.00010958,2]
[360922632,1747149038860,-1339.42,0.00010958,2]
[360922634,1747149038871,-400.0,0.00010958,2]
[360922636,1747149038881,-400.0,0.00010958,2]
[360922638,1747149038890,-615.25,0.00010958,2]
[360922640,1747149038900,-541.11156906,0.00010958,2]
[360922642,1747149038910,-400.0,0.00010958,2]
[360922644,1747149038924,-400.0,0.00010958,2]
[360922646,1747149038934,-400.0,0.00010958,2]
[360922648,1747149038944,-400.0,0.00010958,2]
[360922650,1747149038953,-400.0,0.00010958,2]
[360922652,1747149038966,-400.0,0.00010958,2]
[360922654,1747149038975,-363.52622152,0.00010958,2]
[360922656,1747149038985,-400.0,0.00010958,2]
[360922658,1747149038995,-807.23,0.00010958,2]
[360922660,1747149039004,-444.45,0.00010958,2]
[360922662,1747149039013,-400.0,0.00010958,2]
[360922664,1747149039022,-400.0,0.00010958,2]
[360922665,1747149039032,-400.0,0.00010958,2]
[360922667,1747149039041,-400.0,0.00010958,2]
[360922669,1747149039056,-400.0,0.00010958,2]
[360922671,1747149039065,-400.0,0.00010958,2]
[360922673,1747149039074,-400.0,0.00010958,2]
[360922675,1747149039084,-504.5,0.00010958,2]
[360922677,1747149039093,-400.0,0.00010958,2]
[360922679,1747149039103,-539.2,0.00010958,2]
[360922681,1747149039112,-400.0,0.00010958,2]
[360922683,1747149039121,-629.62,0.00010958,2]
[360922685,1747149039131,-791.41,0.00010958,2]
[360922687,1747149039140,-361.3058107,0.00010958,2]
[360922689,1747149039150,-533.54968294,0.00010958,2]
[360922691,1747149039162,-400.0,0.00010958,2]
[360922693,1747149039171,-400.0,0.00010958,2]
[360922695,1747149039180,-400.0,0.00010958,2]
[360922697,1747149039190,-400.0,0.00010958,2]
[360922698,1747149039198,-400.0,0.00010958,2]
[360922699,1747149039207,-400.0,0.00010958,2]
[360922700,1747149039216,-400.0,0.00010958,2]
[360922701,1747149039225,-400.0,0.00010958,2]
[360922702,1747149039234,-400.0,0.00010958,2]
[360922703,1747149039242,-829.68,0.00010958,2]
[360922704,1747149039251,-400.0,0.00010958,2]
[360922705,1747149039260,-414.39,0.00010958,2]
[360922706,1747149039269,-400.0,0.00010958,2]
[360922707,1747149039278,-682.4,0.00010958,2]
[360922708,1747149039287,-400.0,0.00010958,2]
[360922709,1747149039297,-868.09,0.00010958,2]
[360922710,1747149039306,-400.0,0.00010958,2]
[360922711,1747149039315,-400.0,0.00010958,2]
[360922712,1747149039325,-185.65625597,0.00010958,2]
[360922713,1747149039334,-400.0,0.00010958,2]
[360922714,1747149039343,-400.0,0.00010958,2]
[360922715,1747149039352,-302.40111894,0.00010958,2]
[360922716,1747149039362,-412.41,0.00010958,2]
[360922717,1747149039371,-503.11716233,0.00010958,2]
[360922718,1747149039380,-400.0,0.00010958,2]
[360922719,1747149039389,-682.57,0.00010958,2]
[360922720,1747149039398,-400.0,0.00010958,2]
[360922721,1747149039408,-516.64602593,0.00010958,2]
[360922722,1747149039417,-508.98176397,0.00010958,2]
[360922723,1747149039426,-400.0,0.00010958,2]
[360922724,1747149039435,-359.09879204,0.00010958,2]
[360922725,1747149039444,-516.84450685,0.00010958,2]
[360922726,1747149039453,-400.0,0.00010958,2]
[360922727,1747149039462,-400.0,0.00010958,2]
[360922728,1747149039471,-400.0,0.00010958,2]
[360922729,1747149039481,-400.0,0.00010958,2]
[360922730,1747149039490,-400.0,0.00010958,2]
[360922731,1747149039499,-400.0,0.00010958,2]
[360922732,1747149039508,-219.29278502,0.00010958,2]
[360922733,1747149039516,-1353.28,0.00010958,2]
[360922735,1747149039526,-519.48012146,0.00010958,2]
[360922737,1747149039535,-513.67784503,0.00010958,2]
[360922739,1747149039544,-400.0,0.00010958,2]
[360922741,1747149039554,-522.91774419,0.00010958,2]
[360922743,1747149039564,-460.71469887,0.00010958,2]
[360922745,1747149039573,-400.0,0.00010958,2]
[360922747,1747149039583,-466.13,0.00010958,2]
[360922749,1747149039592,-400.0,0.00010958,2]
[360922751,1747149039601,-400.0,0.00010958,2]
[360922753,1747149039610,-400.0,0.00010958,2]
[360922755,1747149039619,-402.17072511,0.00010958,2]
[360922757,1747149039629,-400.0,0.00010958,2]
[360922759,1747149039638,-400.0,0.00010958,2]
[360922761,1747149039647,-400.0,0.00010958,2]
[360922763,1747149039656,-450.0,0.00010958,2]
[360922765,1747149039666,-400.0,0.00010958,2]
[360922767,1747149039675,-498.02399997,0.00010958,2]
[360922768,1747149039684,-400.0,0.00010958,2]
[360922771,1747149039694,-500.0,0.00010958,2]
[360922772,1747149039703,-400.0,0.00010958,2]
[360922774,1747149039712,-400.0,0.00010958,2]
[360922776,1747149039721,-500.0,0.00010958,2]
[360922778,1747149039731,-400.0,0.00010958,2]
[360922780,1747149039740,-400.0,0.00010958,2]
[360922782,1747149039749,-354.93391209,0.00010958,2]
[360922784,1747149039758,-400.0,0.00010958,2]
[360922786,1747149039767,-400.0,0.00010958,2]
[360922788,1747149039776,-531.15081528,0.00010958,2]
[360922790,1747149039786,-426.98694392,0.00010958,2]
[360922792,1747149039795,-400.0,0.00010958,2]
[360922794,1747149039806,-400.0,0.00010958,2]
[360922796,1747149039815,-400.0,0.00010958,2]
[360922798,1747149039824,-400.0,0.00010958,2]
[360922800,1747149039833,-400.0,0.00010958,2]
[360922802,1747149039843,-400.0,0.00010958,2]
[360922804,1747149039852,-400.0,0.00010958,2]
[360922806,1747149039862,-400.0,0.00010958,2]
[360922808,1747149039871,-400.0,0.00010958,2]
[360922810,1747149039881,-929.48,0.00010958,2]
[360922812,1747149039891,-400.0,0.00010958,2]
[360922814,1747149039900,-1584.8,0.00010958,2]
[360922816,1747149039910,-400.0,0.00010958,2]
[360922818,1747149039921,-519.9,0.00010958,2]
[360922820,1747149039930,-400.0,0.00010958,2]
[360922822,1747149039939,-400.0,0.00010958,2]
[360922824,1747149039949,-705.55,0.00010958,2]
[360922826,1747149039958,-240.19392333,0.00010958,2]
[360922828,1747149039967,-400.0,0.00010958,2]
[360922830,1747149039977,-1229.27,0.00010958,2]
[360922832,1747149039988,-400.0,0.00010958,2]
[360922834,1747149039999,-414.92,0.00010958,2]
[360922836,1747149040009,-400.0,0.00010958,2]
[360922838,1747149040017,-400.0,0.00010958,2]
[360922840,1747149040026,-400.0,0.00010958,2]
[360922842,1747149040036,-400.0,0.00010958,2]
[360922844,1747149040049,-400.0,0.00010958,2]
[360922847,1747149040060,-400.0,0.00010958,2]
[360922849,1747149040069,-400.0,0.00010958,2]
[360922852,1747149040078,-400.0,0.00010958,2]
[360922854,1747149040087,-400.0,0.00010958,2]
[360922857,1747149040098,-414.32683258,0.00010958,2]
[360922859,1747149040107,-4107.82,0.00010958,2]
[360922861,1747149040116,-416.34,0.00010958,2]
[360922863,1747149040125,-400.0,0.00010958,2]
[360922865,1747149040134,-1357.55,0.00010958,2]
[360922867,1747149040144,-400.0,0.00010958,2]
[360922868,1747149040153,-400.0,0.00010958,2]
[360922871,1747149040163,-233.74053201,0.00010958,2]
[360922873,1747149040174,-400.0,0.00010958,2]
[360922875,1747149040183,-400.0,0.00010958,2]
[360922877,1747149040192,-400.0,0.00010958,2]
[360922879,1747149040202,-400.0,0.00010958,2]
[360922881,1747149040211,-400.0,0.00010958,2]
[360922883,1747149040220,-400.0,0.00010958,2]
[360922886,1747149040231,-952.83,0.00010958,2]
[360922888,1747149040241,-400.0,0.00010958,2]
[360922890,1747149040251,-400.0,0.00010958,2]
[360922891,1747149040260,-400.0,0.00010958,2]
[360922893,1747149040269,-400.0,0.00010958,2]
[360922895,1747149040278,-400.0,0.00010958,2]
[360922897,1747149040287,-400.0,0.00010958,2]
[360922899,1747149040298,-400.0,0.00010958,2]
[360922901,1747149040307,-412.32,0.00010958,2]
[360922903,1747149040317,-400.0,0.00010958,2]
[360922905,1747149040326,-400.0,0.00010958,2]
[360922907,1747149040335,-400.0,0.00010958,2]
[360922909,1747149040344,-546.25,0.00010958,2]
[360922911,1747149040354,-400.0,0.00010958,2]
[360922913,1747149040363,-400.0,0.00010958,2]
[360922915,1747149040372,-400.0,0.00010958,2]
[360922917,1747149040381,-400.0,0.00010958,2]
[360922919,1747149040391,-400.0,0.00010958,2]
[360922921,1747149040400,-400.0,0.00010958,2]
[360922923,1747149040409,-508.93,0.00010958,2]
[360922925,1747149040419,-400.0,0.00010958,2]
[360922927,1747149040429,-400.0,0.00010958,2]
[360922929,1747149040438,-479.04,0.00010958,2]
[360922931,1747149040447,-400.0,0.00010958,2]
[360922933,1747149040456,-493.53,0.00010958,2]
[360922935,1747149040466,-400.0,0.00010958,2]
[360922937,1747149040475,-400.0,0.00010958,2]
[360922939,1747149040484,-400.0,0.00010958,2]
[360922941,1747149040493,-400.0,0.00010958,2]
[360922943,1747149040503,-509.82,0.00010958,2]
[360922945,1747149040512,-400.0,0.00010958,2]
[360922947,1747149040521,-400.0,0.00010958,2]
[360922949,1747149040530,-400.0,0.00010958,2]
[360922951,1747149040539,-400.0,0.00010958,2]
[360922953,1747149040550,-400.0,0.00010958,2]
[360922955,1747149040559,-400.0,0.00010958,2]
[360922957,1747149040568,-400.0,0.00010958,2]
[360922959,1747149040577,-400.0,0.00010958,2]
[360922961,1747149040587,-520.7,0.00010958,2]
[360922963,1747149040596,-400.0,0.00010958,2]
[360922965,1747149040605,-400.0,0.00010958,2]
[360922967,1747149040614,-400.0,0.00010958,2]
[360922969,1747149040624,-400.0,0.00010958,2]
[360922971,1747149040633,-1253.17,0.00010958,2]
[360922973,1747149040642,-408.19081796,0.00010958,2]
[360922974,1747149040651,-507.09,0.00010958,2]
[360922977,1747149040660,-400.0,0.00010958,2]
[360922979,1747149040670,-400.0,0.00010958,2]
[360922980,1747149040679,-400.0,0.00010958,2]
[360922982,1747149040688,-400.0,0.00010958,2]
[360922984,1747149040697,-400.0,0.00010958,2]
[360922986,1747149040707,-166.9,0.00010958,2]
[360922988,1747149040716,-400.0,0.00010958,2]
[360922990,1747149040725,-400.0,0.00010958,2]
[360922992,1747149040734,-400.0,0.00010958,2]
[360922994,1747149040743,-400.0,0.00010958,2]
[360922996,1747149040752,-400.0,0.00010958,2]
[360922998,1747149040761,-1632.9,0.00010958,2]
[360923000,1747149040771,-400.0,0.00010958,2]
[360923002,1747149040780,-400.0,0.00010958,2]
[360923004,1747149040789,-1288.88,0.00010958,2]
[360923006,1747149040799,-400.0,0.00010958,2]
[360923008,1747149040809,-400.0,0.00010958,2]
[360923010,1747149040819,-1273.11,0.00010958,2]
[360923013,1747149040828,-400.0,0.00010958,2]
[360923016,1747149040837,-400.0,0.00010958,2]
[360923020,1747149040846,-400.0,0.00010958,2]
[360923022,1747149040855,-1437.24,0.00010958,2]
[360923024,1747149040865,-553.77,0.00010958,2]
[360923026,1747149040874,-698.63,0.00010958,2]
[360923028,1747149040883,-698.6,0.00010958,2]
[360923030,1747149040892,-400.0,0.00010958,2]
[360923032,1747149040903,-400.0,0.00010958,2]
[360923034,1747149040912,-400.0,0.00010958,2]
[360923036,1747149040926,-548.78,0.00010958,2]
[360923038,1747149040935,-851.93,0.00010958,2]
[360923040,1747149040944,-400.0,0.00010958,2]
[360923042,1747149040954,-720.45,0.00010958,2]
[360923044,1747149040964,-400.0,0.00010958,2]
[360923046,1747149040973,-400.0,0.00010958,2]
[360923048,1747149040982,-521.91,0.00010958,2]
[360923050,1747149040992,-671.28,0.00010958,2]
[360923052,1747149041001,-583.29,0.00010958,2]
[360923054,1747149041011,-400.0,0.00010958,2]
[360923056,1747149041019,-400.0,0.00010958,2]
[360923058,1747149041029,-400.0,0.00010958,2]
[360923060,1747149041038,-500.26,0.00010958,2]
[360923062,1747149041049,-400.0,0.00010958,2]
[360923064,1747149041059,-400.0,0.00010958,2]
[360923066,1747149041068,-400.0,0.00010958,2]
[360923068,1747149041077,-642.44,0.00010958,2]
[360923070,1747149041087,-1091.95,0.00010958,2]
[360923072,1747149041097,-500.0,0.00010958,2]
[360923074,1747149041107,-448.92,0.00010958,2]
[360923076,1747149041116,-400.0,0.00010958,2]
[360923078,1747149041125,-400.0,0.00010958,2]
[360923080,1747149041134,-400.0,0.00010958,2]
[360923082,1747149041143,-400.0,0.00010958,2]
[360923084,1747149041153,-400.0,0.00010958,2]
[360923086,1747149041163,-450.23,0.00010958,2]
[360923088,1747149041173,-400.0,0.00010958,2]
[360923090,1747149041183,-400.0,0.00010958,2]
[360923092,1747149041192,-400.0,0.00010958,2]
[360923094,1747149041201,-400.0,0.00010958,2]
[360923096,1747149041211,-400.0,0.00010958,2]
[360923097,1747149041220,-623.83,0.00010958,2]
[360923099,1747149041230,-400.0,0.00010958,2]
[360923102,1747149041239,-400.0,0.00010958,2]
[360923104,1747149041248,-400.0,0.00010958,2]
[360923106,1747149041258,-400.0,0.00010958,2]
[360923108,1747149041267,-410.47,0.00010958,2]
[360923110,1747149041278,-400.0,0.00010958,2]
[360923111,1747149041287,-400.0,0.00010958,2]
[360923114,1747149041296,-400.0,0.00010958,2]
[360923116,1747149041307,-2099.82,0.00010958,2]
[360923118,1747149041317,-400.0,0.00010958,2]
[360923120,1747149041326,-400.0,0.00010958,2]
[360923122,1747149041336,-400.0,0.00010958,2]
[360923123,1747149041345,-441.02921815,0.00010958,2]
[360923126,1747149041356,-400.0,0.00010958,2]
[360923128,1747149041365,-603.77,0.00010958,2]
[360923130,1747149041375,-488.57463115,0.00010958,2]
[360923132,1747149041384,-591.03,0.00010958,2]
[360923135,1747149041394,-919.07,0.00010958,2]
[360923137,1747149041403,-3454.29,0.00010958,2]
[360923139,1747149041413,-188.77271662,0.00010958,2]
[360923140,1747149041423,-400.0,0.00010958,2]
[360923142,1747149041433,-400.0,0.00010958,2]
[360923144,1747149041443,-400.0,0.00010958,2]
[360923146,1747149041453,-1268.62,0.00010958,2]
[360923149,1747149041462,-2487.88,0.00010958,2]
[360923150,1747149041471,-400.0,0.00010958,2]
[360923152,1747149041480,-400.0,0.00010958,2]
[360923154,1747149041490,-400.0,0.00010958,2]
[360923156,1747149041500,-400.0,0.00010958,2]
[360923158,1747149041509,-400.0,0.00010958,2]
[360923160,1747149041518,-439.57,0.00010958,2]
[360923162,1747149041528,-400.0,0.00010958,2]
[360923165,1747149041537,-400.0,0.00010958,2]
[360923166,1747149041547,-1437.63,0.00010958,2]
[360923169,1747149041557,-988.04,0.00010958,2]
[360923170,1747149041567,-400.0,0.00010958,2]
[360923173,1747149041576,-400.0,0.00010958,2]
[360923175,1747149041586,-463.05,0.00010958,2]
[360923177,1747149041595,-400.0,0.00010958,2]
[360923179,1747149041606,-400.0,0.00010958,2]
[360923181,1747149041616,-400.0,0.00010958,2]
[360923183,1747149041626,-450.0,0.00010958,2]
[360923185,1747149041636,-4056.8,0.00010958,2]
[360923186,1747149041645,-400.0,0.00010958,2]
[360923189,1747149041656,-400.0,0.00010958,2]
[360923191,1747149041666,-2615.07,0.00010958,2]
[360923193,1747149041676,-400.0,0.00010958,2]
[360923195,1747149041685,-400.0,0.00010958,2]
[360923197,1747149041694,-400.0,0.00010958,2]
[360923199,1747149041704,-400.0,0.00010958,2]
[360923201,1747149041715,-400.0,0.00010958,2]
[360923203,1747149041724,-411.30255637,0.00010958,2]
[360923205,1747149041733,-504.77,0.00010958,2]
[360923207,1747149041743,-410.04706493,0.00010958,2]
[360923209,1747149041752,-490.83,0.00010958,2]
[360923211,1747149041762,-400.0,0.00010958,2]
[360923213,1747149041771,-400.0,0.00010958,2]
[360923215,1747149041780,-400.0,0.00010958,2]
[360923217,1747149041790,-400.0,0.00010958,2]
[360923219,1747149041799,-652.83,0.00010958,2]
[360923221,1747149041808,-400.0,0.00010958,2]
[360923223,1747149041817,-542.64,0.00010958,2]
[360923225,1747149041827,-400.0,0.00010958,2]
[360923227,1747149041837,-599.48,0.00010958,2]
[360923229,1747149041846,-195.80427865,0.00010958,2]
[360923231,1747149041855,-400.0,0.00010958,2]
[360923232,1747149041866,-400.0,0.00010958,2]
[360923235,1747149041877,-400.0,0.00010958,2]
[360923237,1747149041886,-1312.69,0.00010958,2]
[360923239,1747149041896,-400.0,0.00010958,2]
[360923241,1747149041906,-530.38297164,0.00010958,2]
[360923242,1747149041918,-302.43708674,0.00010958,2]
[360923244,1747149041928,-506.62,0.00010958,2]
[360923246,1747149041938,-680.8,0.00010958,2]
[360923248,1747149041947,-714.49,0.00010958,2]
[360923250,1747149041957,-400.0,0.00010958,2]
[360923252,1747149041967,-400.0,0.00010958,2]
[360923254,1747149041976,-1150.13,0.00010958,2]
[360923256,1747149041985,-539.47179599,0.00010958,2]
[360923258,1747149041994,-400.0,0.00010958,2]
[360923260,1747149042005,-400.0,0.00010958,2]
[360923262,1747149042015,-400.0,0.00010958,2]
[360923264,1747149042024,-400.0,0.00010958,2]
[360923266,1747149042033,-400.0,0.00010958,2]
[360923268,1747149042042,-400.0,0.00010958,2]
[360923270,1747149042053,-400.0,0.00010958,2]
[360923272,1747149042062,-400.0,0.00010958,2]
[360923274,1747149042071,-400.0,0.00010958,2]
[360923276,1747149042080,-400.0,0.00010958,2]